Workbook

Sheet Mortgage
B1: Mortgage Calculation
B2: Put your data in here: | H2: Calculated data (do not edit here, please):
C3: Loan Amount: | F3: $100,000.00 | I3: Scheduled Payment Amount: | K3: =IF(AND(ISNUMBER(F3),ISNUMBER(F4),ISNUMBER(F5),ISNUMBER(F6)),-PMT(F4/F6,K4,F3),"") -> $369.62
C4: Interest Rate (%): | F4: 2.00% | I4: Total No. Payments: | K4: =IF(AND(ISNUMBER(F5),ISNUMBER(F6)),F5*F6,"") -> 360
C5: Number of Years: | F5: 30 | I5: Total Payment Amount: | K5: =IF(AND(K3<>"",K4<>""),K3*K4,"") -> $133,063.01
C6: Number of Payments Per Year: | F6: 12 | I6: Total Interest Paid: | K6: =IF(K5<>"",K5-F3,"") -> $33,063.01
C7: Start Date (optional): | F7: 2015-12-01 | I7: Date of Last Payment: | K7: =IF(AND(ISNUMBER(F5),ISNUMBER(F7)),DATE(YEAR(F7)+F5,MONTH(F7),DAY(F7)),"") -> 2045-12-01
B8: =IF(AND($K$3<>"",$K$4<>"",$K$4>480),"Note: Table Below Only Shows the First 480 Payments","") -> 
B9: Payment # | D9: Date | E9: Start Balance | G9: Payment Amount | I9: Capital Paid | J9: Interest Paid | K9: Remaining Balance
B10: =IF($K$3="","",IF(ROW()<=$K$4+9,ROW()-9,"")) -> 1 | D10: =IF(OR($B10="",$F$7=""),"",IF(DAY(DATE(YEAR($F$7),MONTH($F$7)+12*$B10/$F$6,DAY($F$7)))<>DAY($F$7),DATE(YEAR($F$7),MONTH($F$7)+12*$B10/$F$6,DAY($F$7))-DAY(DATE(YEAR($F$7),MONTH($F$7)+12*$B10/$F$6,DAY($F$7))),DATE(YEAR($F$7),MONTH($F$7)+12*$B10/$F$6,DAY($F$7)))) -> 2016-01-01 | E10: =IF($B10="","",$F$3) -> $100,000.00 | G10: =IF($B10="","",$K$3) -> $369.62 | I10: =IF($B10="","",-PPMT($F$4/$F$6,$B10,$K$4,$F$3)) -> $202.95 | J10: =IF($B10="","",-IPMT($F$4/$F$6,$B10,$K$4,$F$3)) -> $166.67 | K10: =IF($B10="","",$E10*(1+$F$4/$F$6)-$G10) -> $99,797.05
B11: 2 | D11: =IF(OR($B11="",$F$7=""),"",IF(DAY(DATE(YEAR($F$7),MONTH($F$7)+12*$B11/$F$6,DAY($F$7)))<>DAY($F$7),DATE(YEAR($F$7),MONTH($F$7)+12*$B11/$F$6,DAY($F$7))-DAY(DATE(YEAR($F$7),MONTH($F$7)+12*$B11/$F$6,DAY($F$7))),DATE(YEAR($F$7),MONTH($F$7)+12*$B11/$F$6,DAY($F$7)))) -> 2016-02-01 | E11: =IF($B11="","",$K10) -> $99,797.05 | G11: $369.62 | I11: =IF($B11="","",-PPMT($F$4/$F$6,$B11,$K$4,$F$3)) -> $203.29 | J11: =IF($B11="","",-IPMT($F$4/$F$6,$B11,$K$4,$F$3)) -> $166.33 | K11: $99,593.76
B12: 3 | D12: =IF(OR($B12="",$F$7=""),"",IF(DAY(DATE(YEAR($F$7),MONTH($F$7)+12*$B12/$F$6,DAY($F$7)))<>DAY($F$7),DATE(YEAR($F$7),MONTH($F$7)+12*$B12/$F$6,DAY($F$7))-DAY(DATE(YEAR($F$7),MONTH($F$7)+12*$B12/$F$6,DAY($F$7))),DATE(YEAR($F$7),MONTH($F$7)+12*$B12/$F$6,DAY($F$7)))) -> 2016-03-01 | E12: $99,593.76 | G12: $369.62 | I12: $203.63 | J12: $165.99 | K12: $99,390.13
B13: 4 | D13: =IF(OR($B13="",$F$7=""),"",IF(DAY(DATE(YEAR($F$7),MONTH($F$7)+12*$B13/$F$6,DAY($F$7)))<>DAY($F$7),DATE(YEAR($F$7),MONTH($F$7)+12*$B13/$F$6,DAY($F$7))-DAY(DATE(YEAR($F$7),MONTH($F$7)+12*$B13/$F$6,DAY($F$7))),DATE(YEAR($F$7),MONTH($F$7)+12*$B13/$F$6,DAY($F$7)))) -> 2016-04-01 | E13: $99,390.13 | G13: $369.62 | I13: $203.97 | J13: $165.65 | K13: $99,186.16
B14: 5 | D14: 2016-05-01 | E14: $99,186.16 | G14: $369.62 | I14: $204.31 | J14: $165.31 | K14: $98,981.85
B15: 6 | D15: 2016-06-01 | E15: $98,981.85 | G15: $369.62 | I15: $204.65 | J15: $164.97 | K15: $98,777.20
B16: 7 | D16: 2016-07-01 | E16: $98,777.20 | G16: $369.62 | I16: $204.99 | J16: $164.63 | K16: $98,572.21
B17: 8 | D17: 2016-08-01 | E17: $98,572.21 | G17: $369.62 | I17: $205.33 | J17: $164.29 | K17: $98,366.87
B18: 9 | D18: 2016-09-01 | E18: $98,366.87 | G18: $369.62 | I18: $205.67 | J18: $163.94 | K18: $98,161.20
B19: 10 | D19: 2016-10-01 | E19: $98,161.20 | G19: $369.62 | I19: $206.02 | J19: $163.60 | K19: $97,955.18
B20: 11 | D20: 2016-11-01 | E20: $97,955.18 | G20: $369.62 | I20: $206.36 | J20: $163.26 | K20: $97,748.82
B21: 12 | D21: 2016-12-01 | E21: $97,748.82 | G21: $369.62 | I21: $206.70 | J21: $162.91 | K21: $97,542.12
B22: 13 | D22: 2017-01-01 | E22: $97,542.12 | G22: $369.62 | I22: $207.05 | J22: $162.57 | K22: $97,335.07
B23: 14 | D23: 2017-02-01 | E23: $97,335.07 | G23: $369.62 | I23: $207.39 | J23: $162.23 | K23: $97,127.67
B24: 15 | D24: 2017-03-01 | E24: $97,127.67 | G24: $369.62 | I24: $207.74 | J24: $161.88 | K24: $96,919.93
B25: 16 | D25: 2017-04-01 | E25: $96,919.93 | G25: $369.62 | I25: $208.09 | J25: $161.53 | K25: $96,711.85
B26: 17 | D26: 2017-05-01 | E26: $96,711.85 | G26: $369.62 | I26: $208.43 | J26: $161.19 | K26: $96,503.41
B27: 18 | D27: 2017-06-01 | E27: $96,503.41 | G27: $369.62 | I27: $208.78 | J27: $160.84 | K27: $96,294.63
B28: 19 | D28: 2017-07-01 | E28: $96,294.63 | G28: $369.62 | I28: $209.13 | J28: $160.49 | K28: $96,085.51
B29: 20 | D29: 2017-08-01 | E29: $96,085.51 | G29: $369.62 | I29: $209.48 | J29: $160.14 | K29: $95,876.03
B30: 21 | D30: 2017-09-01 | E30: $95,876.03 | G30: $369.62 | I30: $209.83 | J30: $159.79 | K30: $95,666.20
B31: 22 | D31: 2017-10-01 | E31: $95,666.20 | G31: $369.62 | I31: $210.18 | J31: $159.44 | K31: $95,456.03
B32: 23 | D32: 2017-11-01 | E32: $95,456.03 | G32: $369.62 | I32: $210.53 | J32: $159.09 | K32: $95,245.50
B33: 24 | D33: 2017-12-01 | E33: $95,245.50 | G33: $369.62 | I33: $210.88 | J33: $158.74 | K33: $95,034.62
B34: 25 | D34: 2018-01-01 | E34: $95,034.62 | G34: $369.62 | I34: $211.23 | J34: $158.39 | K34: $94,823.39
B35: 26 | D35: 2018-02-01 | E35: $94,823.39 | G35: $369.62 | I35: $211.58 | J35: $158.04 | K35: $94,611.81
B36: 27 | D36: 2018-03-01 | E36: $94,611.81 | G36: $369.62 | I36: $211.93 | J36: $157.69 | K36: $94,399.88
B37: 28 | D37: 2018-04-01 | E37: $94,399.88 | G37: $369.62 | I37: $212.29 | J37: $157.33 | K37: $94,187.59
B38: 29 | D38: 2018-05-01 | E38: $94,187.59 | G38: $369.62 | I38: $212.64 | J38: $156.98 | K38: $93,974.95
B39: 30 | D39: 2018-06-01 | E39: $93,974.95 | G39: $369.62 | I39: $212.99 | J39: $156.62 | K39: $93,761.96
B40: 31 | D40: 2018-07-01 | E40: $93,761.96 | G40: $369.62 | I40: $213.35 | J40: $156.27 | K40: $93,548.61
B41: 32 | D41: 2018-08-01 | E41: $93,548.61 | G41: $369.62 | I41: $213.71 | J41: $155.91 | K41: $93,334.91
B42: 33 | D42: 2018-09-01 | E42: $93,334.91 | G42: $369.62 | I42: $214.06 | J42: $155.56 | K42: $93,120.84
B43: 34 | D43: 2018-10-01 | E43: $93,120.84 | G43: $369.62 | I43: $214.42 | J43: $155.20 | K43: $92,906.43
B44: 35 | D44: 2018-11-01 | E44: $92,906.43 | G44: $369.62 | I44: $214.78 | J44: $154.84 | K44: $92,691.65
B45: 36 | D45: 2018-12-01 | E45: $92,691.65 | G45: $369.62 | I45: $215.13 | J45: $154.49 | K45: $92,476.52
B46: 37 | D46: 2019-01-01 | E46: $92,476.52 | G46: $369.62 | I46: $215.49 | J46: $154.13 | K46: $92,261.03
B47: 38 | D47: 2019-02-01 | E47: $92,261.03 | G47: $369.62 | I47: $215.85 | J47: $153.77 | K47: $92,045.17
B48: 39 | D48: 2019-03-01 | E48: $92,045.17 | G48: $369.62 | I48: $216.21 | J48: $153.41 | K48: $91,828.96
B49: 40 | D49: 2019-04-01 | E49: $91,828.96 | G49: $369.62 | I49: $216.57 | J49: $153.05 | K49: $91,612.39
B50: 41 | D50: 2019-05-01 | E50: $91,612.39 | G50: $369.62 | I50: $216.93 | J50: $152.69 | K50: $91,395.46
B51: 42 | D51: 2019-06-01 | E51: $91,395.46 | G51: $369.62 | I51: $217.29 | J51: $152.33 | K51: $91,178.17
B52: 43 | D52: 2019-07-01 | E52: $91,178.17 | G52: $369.62 | I52: $217.66 | J52: $151.96 | K52: $90,960.51
B53: 44 | D53: 2019-08-01 | E53: $90,960.51 | G53: $369.62 | I53: $218.02 | J53: $151.60 | K53: $90,742.49
B54: 45 | D54: 2019-09-01 | E54: $90,742.49 | G54: $369.62 | I54: $218.38 | J54: $151.24 | K54: $90,524.11
B55: 46 | D55: 2019-10-01 | E55: $90,524.11 | G55: $369.62 | I55: $218.75 | J55: $150.87 | K55: $90,305.36
B56: 47 | D56: 2019-11-01 | E56: $90,305.36 | G56: $369.62 | I56: $219.11 | J56: $150.51 | K56: $90,086.25
B57: 48 | D57: 2019-12-01 | E57: $90,086.25 | G57: $369.62 | I57: $219.48 | J57: $150.14 | K57: $89,866.78
B58: 49 | D58: 2020-01-01 | E58: $89,866.78 | G58: $369.62 | I58: $219.84 | J58: $149.78 | K58: $89,646.94
B59: 50 | D59: 2020-02-01 | E59: $89,646.94 | G59: $369.62 | I59: $220.21 | J59: $149.41 | K59: $89,426.73
B60: 51 | D60: 2020-03-01 | E60: $89,426.73 | G60: $369.62 | I60: $220.57 | J60: $149.04 | K60: $89,206.15
B61: 52 | D61: 2020-04-01 | E61: $89,206.15 | G61: $369.62 | I61: $220.94 | J61: $148.68 | K61: $88,985.21
B62: 53 | D62: 2020-05-01 | E62: $88,985.21 | G62: $369.62 | I62: $221.31 | J62: $148.31 | K62: $88,763.90
B63: 54 | D63: 2020-06-01 | E63: $88,763.90 | G63: $369.62 | I63: $221.68 | J63: $147.94 | K63: $88,542.22
B64: 55 | D64: 2020-07-01 | E64: $88,542.22 | G64: $369.62 | I64: $222.05 | J64: $147.57 | K64: $88,320.17
B65: 56 | D65: 2020-08-01 | E65: $88,320.17 | G65: $369.62 | I65: $222.42 | J65: $147.20 | K65: $88,097.75
B66: 57 | D66: 2020-09-01 | E66: $88,097.75 | G66: $369.62 | I66: $222.79 | J66: $146.83 | K66: $87,874.96
B67: 58 | D67: 2020-10-01 | E67: $87,874.96 | G67: $369.62 | I67: $223.16 | J67: $146.46 | K67: $87,651.80
B68: 59 | D68: 2020-11-01 | E68: $87,651.80 | G68: $369.62 | I68: $223.53 | J68: $146.09 | K68: $87,428.27
B69: 60 | D69: 2020-12-01 | E69: $87,428.27 | G69: $369.62 | I69: $223.91 | J69: $145.71 | K69: $87,204.36
B70: 61 | D70: 2021-01-01 | E70: $87,204.36 | G70: $369.62 | I70: $224.28 | J70: $145.34 | K70: $86,980.08
B71: 62 | D71: 2021-02-01 | E71: $86,980.08 | G71: $369.62 | I71: $224.65 | J71: $144.97 | K71: $86,755.43
B72: 63 | D72: 2021-03-01 | E72: $86,755.43 | G72: $369.62 | I72: $225.03 | J72: $144.59 | K72: $86,530.40
B73: 64 | D73: 2021-04-01 | E73: $86,530.40 | G73: $369.62 | I73: $225.40 | J73: $144.22 | K73: $86,305.00
B74: =IF($K$3="","",IF(ROW()<=$K$4+9,ROW()-9,"")) -> 65 | D74: 2021-05-01 | E74: $86,305.00 | G74: =IF($B74="","",$K$3) -> $369.62 | I74: $225.78 | J74: $143.84 | K74: =IF($B74="","",$E74*(1+$F$4/$F$6)-$G74) -> $86,079.22
B75: 66 | D75: 2021-06-01 | E75: =IF($B75="","",$K74) -> $86,079.22 | G75: $369.62 | I75: =IF($B75="","",-PPMT($F$4/$F$6,$B75,$K$4,$F$3)) -> $226.15 | J75: =IF($B75="","",-IPMT($F$4/$F$6,$B75,$K$4,$F$3)) -> $143.47 | K75: $85,853.07
B76: 67 | D76: 2021-07-01 | E76: $85,853.07 | G76: $369.62 | I76: $226.53 | J76: $143.09 | K76: $85,626.54
B77: 68 | D77: =IF(OR($B77="",$F$7=""),"",IF(DAY(DATE(YEAR($F$7),MONTH($F$7)+12*$B77/$F$6,DAY($F$7)))<>DAY($F$7),DATE(YEAR($F$7),MONTH($F$7)+12*$B77/$F$6,DAY($F$7))-DAY(DATE(YEAR($F$7),MONTH($F$7)+12*$B77/$F$6,DAY($F$7))),DATE(YEAR($F$7),MONTH($F$7)+12*$B77/$F$6,DAY($F$7)))) -> 2021-08-01 | E77: $85,626.54 | G77: $369.62 | I77: $226.91 | J77: $142.71 | K77: $85,399.63
B78: 69 | D78: 2021-09-01 | E78: $85,399.63 | G78: $369.62 | I78: $227.29 | J78: $142.33 | K78: $85,172.34
B79: 70 | D79: 2021-10-01 | E79: $85,172.34 | G79: $369.62 | I79: $227.67 | J79: $141.95 | K79: $84,944.68
B80: 71 | D80: 2021-11-01 | E80: $84,944.68 | G80: $369.62 | I80: $228.05 | J80: $141.57 | K80: $84,716.63
B81: 72 | D81: 2021-12-01 | E81: $84,716.63 | G81: $369.62 | I81: $228.43 | J81: $141.19 | K81: $84,488.21
B82: 73 | D82: 2022-01-01 | E82: $84,488.21 | G82: $369.62 | I82: $228.81 | J82: $140.81 | K82: $84,259.40
B83: 74 | D83: 2022-02-01 | E83: $84,259.40 | G83: $369.62 | I83: $229.19 | J83: $140.43 | K83: $84,030.21
B84: 75 | D84: 2022-03-01 | E84: $84,030.21 | G84: $369.62 | I84: $229.57 | J84: $140.05 | K84: $83,800.65
B85: 76 | D85: 2022-04-01 | E85: $83,800.65 | G85: $369.62 | I85: $229.95 | J85: $139.67 | K85: $83,570.69
B86: 77 | D86: 2022-05-01 | E86: $83,570.69 | G86: $369.62 | I86: $230.33 | J86: $139.28 | K86: $83,340.36
B87: 78 | D87: 2022-06-01 | E87: $83,340.36 | G87: $369.62 | I87: $230.72 | J87: $138.90 | K87: $83,109.64
B88: 79 | D88: 2022-07-01 | E88: $83,109.64 | G88: $369.62 | I88: $231.10 | J88: $138.52 | K88: $82,878.54
B89: 80 | D89: 2022-08-01 | E89: $82,878.54 | G89: $369.62 | I89: $231.49 | J89: $138.13 | K89: $82,647.05
B90: 81 | D90: 2022-09-01 | E90: $82,647.05 | G90: $369.62 | I90: $231.87 | J90: $137.75 | K90: $82,415.17
B91: 82 | D91: 2022-10-01 | E91: $82,415.17 | G91: $369.62 | I91: $232.26 | J91: $137.36 | K91: $82,182.91
B92: 83 | D92: 2022-11-01 | E92: $82,182.91 | G92: $369.62 | I92: $232.65 | J92: $136.97 | K92: $81,950.26
B93: 84 | D93: 2022-12-01 | E93: $81,950.26 | G93: $369.62 | I93: $233.04 | J93: $136.58 | K93: $81,717.23
B94: 85 | D94: 2023-01-01 | E94: $81,717.23 | G94: $369.62 | I94: $233.42 | J94: $136.20 | K94: $81,483.80
B95: 86 | D95: 2023-02-01 | E95: $81,483.80 | G95: $369.62 | I95: $233.81 | J95: $135.81 | K95: $81,249.99
B96: 87 | D96: 2023-03-01 | E96: $81,249.99 | G96: $369.62 | I96: $234.20 | J96: $135.42 | K96: $81,015.79
B97: 88 | D97: 2023-04-01 | E97: $81,015.79 | G97: $369.62 | I97: $234.59 | J97: $135.03 | K97: $80,781.20
B98: 89 | D98: 2023-05-01 | E98: $80,781.20 | G98: $369.62 | I98: $234.98 | J98: $134.64 | K98: $80,546.21
B99: 90 | D99: 2023-06-01 | E99: $80,546.21 | G99: $369.62 | I99: $235.38 | J99: $134.24 | K99: $80,310.84
B100: 91 | D100: 2023-07-01 | E100: $80,310.84 | G100: $369.62 | I100: $235.77 | J100: $133.85 | K100: $80,075.07
B101: 92 | D101: 2023-08-01 | E101: $80,075.07 | G101: $369.62 | I101: $236.16 | J101: $133.46 | K101: $79,838.91
B102: 93 | D102: 2023-09-01 | E102: $79,838.91 | G102: $369.62 | I102: $236.55 | J102: $133.06 | K102: $79,602.35
B103: 94 | D103: 2023-10-01 | E103: $79,602.35 | G103: $369.62 | I103: $236.95 | J103: $132.67 | K103: $79,365.40
B104: 95 | D104: 2023-11-01 | E104: $79,365.40 | G104: $369.62 | I104: $237.34 | J104: $132.28 | K104: $79,128.06
B105: 96 | D105: 2023-12-01 | E105: $79,128.06 | G105: $369.62 | I105: $237.74 | J105: $131.88 | K105: $78,890.32
B106: 97 | D106: 2024-01-01 | E106: $78,890.32 | G106: $369.62 | I106: $238.14 | J106: $131.48 | K106: $78,652.18
B107: 98 | D107: 2024-02-01 | E107: $78,652.18 | G107: $369.62 | I107: $238.53 | J107: $131.09 | K107: $78,413.65
B108: 99 | D108: 2024-03-01 | E108: $78,413.65 | G108: $369.62 | I108: $238.93 | J108: $130.69 | K108: $78,174.72
B109: 100 | D109: 2024-04-01 | E109: $78,174.72 | G109: $369.62 | I109: $239.33 | J109: $130.29 | K109: $77,935.39
B110: 101 | D110: 2024-05-01 | E110: $77,935.39 | G110: $369.62 | I110: $239.73 | J110: $129.89 | K110: $77,695.67
B111: 102 | D111: 2024-06-01 | E111: $77,695.67 | G111: $369.62 | I111: $240.13 | J111: $129.49 | K111: $77,455.54
B112: 103 | D112: 2024-07-01 | E112: $77,455.54 | G112: $369.62 | I112: $240.53 | J112: $129.09 | K112: $77,215.01
B113: 104 | D113: 2024-08-01 | E113: $77,215.01 | G113: $369.62 | I113: $240.93 | J113: $128.69 | K113: $76,974.09
B114: 105 | D114: 2024-09-01 | E114: $76,974.09 | G114: $369.62 | I114: $241.33 | J114: $128.29 | K114: $76,732.76
B115: 106 | D115: 2024-10-01 | E115: $76,732.76 | G115: $369.62 | I115: $241.73 | J115: $127.89 | K115: $76,491.02
B116: 107 | D116: 2024-11-01 | E116: $76,491.02 | G116: $369.62 | I116: $242.13 | J116: $127.49 | K116: $76,248.89
B117: 108 | D117: 2024-12-01 | E117: $76,248.89 | G117: $369.62 | I117: $242.54 | J117: $127.08 | K117: $76,006.35
B118: 109 | D118: 2025-01-01 | E118: $76,006.35 | G118: $369.62 | I118: $242.94 | J118: $126.68 | K118: $75,763.41
B119: 110 | D119: 2025-02-01 | E119: $75,763.41 | G119: $369.62 | I119: $243.35 | J119: $126.27 | K119: $75,520.06
B120: 111 | D120: 2025-03-01 | E120: $75,520.06 | G120: $369.62 | I120: $243.75 | J120: $125.87 | K120: $75,276.31
B121: 112 | D121: 2025-04-01 | E121: $75,276.31 | G121: $369.62 | I121: $244.16 | J121: $125.46 | K121: $75,032.15
B122: 113 | D122: 2025-05-01 | E122: $75,032.15 | G122: $369.62 | I122: $244.57 | J122: $125.05 | K122: $74,787.58
B123: 114 | D123: 2025-06-01 | E123: $74,787.58 | G123: $369.62 | I123: $244.97 | J123: $124.65 | K123: $74,542.61
B124: 115 | D124: 2025-07-01 | E124: $74,542.61 | G124: $369.62 | I124: $245.38 | J124: $124.24 | K124: $74,297.23
B125: 116 | D125: 2025-08-01 | E125: $74,297.23 | G125: $369.62 | I125: $245.79 | J125: $123.83 | K125: $74,051.44
B126: 117 | D126: 2025-09-01 | E126: $74,051.44 | G126: $369.62 | I126: $246.20 | J126: $123.42 | K126: $73,805.24
B127: 118 | D127: 2025-10-01 | E127: $73,805.24 | G127: $369.62 | I127: $246.61 | J127: $123.01 | K127: $73,558.63
B128: 119 | D128: 2025-11-01 | E128: $73,558.63 | G128: $369.62 | I128: $247.02 | J128: $122.60 | K128: $73,311.61
B129: 120 | D129: 2025-12-01 | E129: $73,311.61 | G129: $369.62 | I129: $247.43 | J129: $122.19 | K129: $73,064.17
B130: 121 | D130: 2026-01-01 | E130: $73,064.17 | G130: $369.62 | I130: $247.85 | J130: $121.77 | K130: $72,816.33
B131: 122 | D131: 2026-02-01 | E131: $72,816.33 | G131: $369.62 | I131: $248.26 | J131: $121.36 | K131: $72,568.07
B132: 123 | D132: 2026-03-01 | E132: $72,568.07 | G132: $369.62 | I132: $248.67 | J132: $120.95 | K132: $72,319.40
B133: 124 | D133: 2026-04-01 | E133: $72,319.40 | G133: $369.62 | I133: $249.09 | J133: $120.53 | K133: $72,070.31
B134: 125 | D134: 2026-05-01 | E134: $72,070.31 | G134: $369.62 | I134: $249.50 | J134: $120.12 | K134: $71,820.81
B135: 126 | D135: 2026-06-01 | E135: $71,820.81 | G135: $369.62 | I135: $249.92 | J135: $119.70 | K135: $71,570.89
B136: 127 | D136: 2026-07-01 | E136: $71,570.89 | G136: $369.62 | I136: $250.33 | J136: $119.28 | K136: $71,320.55
B137: 128 | D137: 2026-08-01 | E137: $71,320.55 | G137: $369.62 | I137: $250.75 | J137: $118.87 | K137: $71,069.80
B138: =IF($K$3="","",IF(ROW()<=$K$4+9,ROW()-9,"")) -> 129 | D138: 2026-09-01 | E138: $71,069.80 | G138: =IF($B138="","",$K$3) -> $369.62 | I138: $251.17 | J138: $118.45 | K138: =IF($B138="","",$E138*(1+$F$4/$F$6)-$G138) -> $70,818.63
B139: 130 | D139: 2026-10-01 | E139: =IF($B139="","",$K138) -> $70,818.63 | G139: $369.62 | I139: =IF($B139="","",-PPMT($F$4/$F$6,$B139,$K$4,$F$3)) -> $251.59 | J139: =IF($B139="","",-IPMT($F$4/$F$6,$B139,$K$4,$F$3)) -> $118.03 | K139: $70,567.04
B140: 131 | D140: 2026-11-01 | E140: $70,567.04 | G140: $369.62 | I140: $252.01 | J140: $117.61 | K140: $70,315.03
B141: 132 | D141: =IF(OR($B141="",$F$7=""),"",IF(DAY(DATE(YEAR($F$7),MONTH($F$7)+12*$B141/$F$6,DAY($F$7)))<>DAY($F$7),DATE(YEAR($F$7),MONTH($F$7)+12*$B141/$F$6,DAY($F$7))-DAY(DATE(YEAR($F$7),MONTH($F$7)+12*$B141/$F$6,DAY($F$7))),DATE(YEAR($F$7),MONTH($F$7)+12*$B141/$F$6,DAY($F$7)))) -> 2026-12-01 | E141: $70,315.03 | G141: $369.62 | I141: $252.43 | J141: $117.19 | K141: $70,062.61
B142: 133 | D142: 2027-01-01 | E142: $70,062.61 | G142: $369.62 | I142: $252.85 | J142: $116.77 | K142: $69,809.76
B143: 134 | D143: 2027-02-01 | E143: $69,809.76 | G143: $369.62 | I143: $253.27 | J143: $116.35 | K143: $69,556.49
B144: 135 | D144: 2027-03-01 | E144: $69,556.49 | G144: $369.62 | I144: $253.69 | J144: $115.93 | K144: $69,302.80
B145: 136 | D145: 2027-04-01 | E145: $69,302.80 | G145: $369.62 | I145: $254.11 | J145: $115.50 | K145: $69,048.68
B146: 137 | D146: 2027-05-01 | E146: $69,048.68 | G146: $369.62 | I146: $254.54 | J146: $115.08 | K146: $68,794.14
B147: 138 | D147: 2027-06-01 | E147: $68,794.14 | G147: $369.62 | I147: $254.96 | J147: $114.66 | K147: $68,539.18
B148: 139 | D148: 2027-07-01 | E148: $68,539.18 | G148: $369.62 | I148: $255.39 | J148: $114.23 | K148: $68,283.79
B149: 140 | D149: 2027-08-01 | E149: $68,283.79 | G149: $369.62 | I149: $255.81 | J149: $113.81 | K149: $68,027.98
B150: 141 | D150: 2027-09-01 | E150: $68,027.98 | G150: $369.62 | I150: $256.24 | J150: $113.38 | K150: $67,771.74
B151: 142 | D151: 2027-10-01 | E151: $67,771.74 | G151: $369.62 | I151: $256.67 | J151: $112.95 | K151: $67,515.07
B152: 143 | D152: 2027-11-01 | E152: $67,515.07 | G152: $369.62 | I152: $257.09 | J152: $112.53 | K152: $67,257.98
B153: 144 | D153: 2027-12-01 | E153: $67,257.98 | G153: $369.62 | I153: $257.52 | J153: $112.10 | K153: $67,000.46
B154: 145 | D154: 2028-01-01 | E154: $67,000.46 | G154: $369.62 | I154: $257.95 | J154: $111.67 | K154: $66,742.51
B155: 146 | D155: 2028-02-01 | E155: $66,742.51 | G155: $369.62 | I155: $258.38 | J155: $111.24 | K155: $66,484.12
B156: 147 | D156: 2028-03-01 | E156: $66,484.12 | G156: $369.62 | I156: $258.81 | J156: $110.81 | K156: $66,225.31
B157: 148 | D157: 2028-04-01 | E157: $66,225.31 | G157: $369.62 | I157: $259.24 | J157: $110.38 | K157: $65,966.07
B158: 149 | D158: 2028-05-01 | E158: $65,966.07 | G158: $369.62 | I158: $259.68 | J158: $109.94 | K158: $65,706.39
B159: 150 | D159: 2028-06-01 | E159: $65,706.39 | G159: $369.62 | I159: $260.11 | J159: $109.51 | K159: $65,446.28
B160: 151 | D160: 2028-07-01 | E160: $65,446.28 | G160: $369.62 | I160: $260.54 | J160: $109.08 | K160: $65,185.74
B161: 152 | D161: 2028-08-01 | E161: $65,185.74 | G161: $369.62 | I161: $260.98 | J161: $108.64 | K161: $64,924.76
B162: 153 | D162: 2028-09-01 | E162: $64,924.76 | G162: $369.62 | I162: $261.41 | J162: $108.21 | K162: $64,663.35
B163: 154 | D163: 2028-10-01 | E163: $64,663.35 | G163: $369.62 | I163: $261.85 | J163: $107.77 | K163: $64,401.50
B164: 155 | D164: 2028-11-01 | E164: $64,401.50 | G164: $369.62 | I164: $262.28 | J164: $107.34 | K164: $64,139.22
B165: 156 | D165: 2028-12-01 | E165: $64,139.22 | G165: $369.62 | I165: $262.72 | J165: $106.90 | K165: $63,876.50
B166: 157 | D166: 2029-01-01 | E166: $63,876.50 | G166: $369.62 | I166: $263.16 | J166: $106.46 | K166: $63,613.34
B167: 158 | D167: 2029-02-01 | E167: $63,613.34 | G167: $369.62 | I167: $263.60 | J167: $106.02 | K167: $63,349.74
B168: 159 | D168: 2029-03-01 | E168: $63,349.74 | G168: $369.62 | I168: $264.04 | J168: $105.58 | K168: $63,085.71
B169: 160 | D169: 2029-04-01 | E169: $63,085.71 | G169: $369.62 | I169: $264.48 | J169: $105.14 | K169: $62,821.23
B170: 161 | D170: 2029-05-01 | E170: $62,821.23 | G170: $369.62 | I170: $264.92 | J170: $104.70 | K170: $62,556.31
B171: 162 | D171: 2029-06-01 | E171: $62,556.31 | G171: $369.62 | I171: $265.36 | J171: $104.26 | K171: $62,290.95
B172: 163 | D172: 2029-07-01 | E172: $62,290.95 | G172: $369.62 | I172: $265.80 | J172: $103.82 | K172: $62,025.15
B173: 164 | D173: 2029-08-01 | E173: $62,025.15 | G173: $369.62 | I173: $266.24 | J173: $103.38 | K173: $61,758.91
B174: 165 | D174: 2029-09-01 | E174: $61,758.91 | G174: $369.62 | I174: $266.69 | J174: $102.93 | K174: $61,492.22
B175: 166 | D175: 2029-10-01 | E175: $61,492.22 | G175: $369.62 | I175: $267.13 | J175: $102.49 | K175: $61,225.09
B176: 167 | D176: 2029-11-01 | E176: $61,225.09 | G176: $369.62 | I176: $267.58 | J176: $102.04 | K176: $60,957.51
B177: 168 | D177: 2029-12-01 | E177: $60,957.51 | G177: $369.62 | I177: $268.02 | J177: $101.60 | K177: $60,689.49
B178: 169 | D178: 2030-01-01 | E178: $60,689.49 | G178: $369.62 | I178: $268.47 | J178: $101.15 | K178: $60,421.02
B179: 170 | D179: 2030-02-01 | E179: $60,421.02 | G179: $369.62 | I179: $268.92 | J179: $100.70 | K179: $60,152.10
B180: 171 | D180: 2030-03-01 | E180: $60,152.10 | G180: $369.62 | I180: $269.37 | J180: $100.25 | K180: $59,882.73
B181: 172 | D181: 2030-04-01 | E181: $59,882.73 | G181: $369.62 | I181: $269.81 | J181: $99.80 | K181: $59,612.92
B182: 173 | D182: 2030-05-01 | E182: $59,612.92 | G182: $369.62 | I182: $270.26 | J182: $99.35 | K182: $59,342.65
B183: 174 | D183: 2030-06-01 | E183: $59,342.65 | G183: $369.62 | I183: $270.72 | J183: $98.90 | K183: $59,071.94
B184: 175 | D184: 2030-07-01 | E184: $59,071.94 | G184: $369.62 | I184: $271.17 | J184: $98.45 | K184: $58,800.77
B185: 176 | D185: 2030-08-01 | E185: $58,800.77 | G185: $369.62 | I185: $271.62 | J185: $98.00 | K185: $58,529.15
B186: 177 | D186: 2030-09-01 | E186: $58,529.15 | G186: $369.62 | I186: $272.07 | J186: $97.55 | K186: $58,257.08
B187: 178 | D187: 2030-10-01 | E187: $58,257.08 | G187: $369.62 | I187: $272.52 | J187: $97.10 | K187: $57,984.56
B188: 179 | D188: 2030-11-01 | E188: $57,984.56 | G188: $369.62 | I188: $272.98 | J188: $96.64 | K188: $57,711.58
B189: 180 | D189: 2030-12-01 | E189: $57,711.58 | G189: $369.62 | I189: $273.43 | J189: $96.19 | K189: $57,438.15
B190: 181 | D190: 2031-01-01 | E190: $57,438.15 | G190: $369.62 | I190: $273.89 | J190: $95.73 | K190: $57,164.26
B191: 182 | D191: 2031-02-01 | E191: $57,164.26 | G191: $369.62 | I191: $274.35 | J191: $95.27 | K191: $56,889.91
B192: 183 | D192: 2031-03-01 | E192: $56,889.91 | G192: $369.62 | I192: $274.80 | J192: $94.82 | K192: $56,615.11
B193: 184 | D193: 2031-04-01 | E193: $56,615.11 | G193: $369.62 | I193: $275.26 | J193: $94.36 | K193: $56,339.85
B194: 185 | D194: 2031-05-01 | E194: $56,339.85 | G194: $369.62 | I194: $275.72 | J194: $93.90 | K194: $56,064.13
B195: 186 | D195: 2031-06-01 | E195: $56,064.13 | G195: $369.62 | I195: $276.18 | J195: $93.44 | K195: $55,787.95
B196: 187 | D196: 2031-07-01 | E196: $55,787.95 | G196: $369.62 | I196: $276.64 | J196: $92.98 | K196: $55,511.31
B197: 188 | D197: 2031-08-01 | E197: $55,511.31 | G197: $369.62 | I197: $277.10 | J197: $92.52 | K197: $55,234.21
B198: 189 | D198: 2031-09-01 | E198: $55,234.21 | G198: $369.62 | I198: $277.56 | J198: $92.06 | K198: $54,956.65
B199: 190 | D199: 2031-10-01 | E199: $54,956.65 | G199: $369.62 | I199: $278.03 | J199: $91.59 | K199: $54,678.62
B200: 191 | D200: 2031-11-01 | E200: $54,678.62 | G200: $369.62 | I200: $278.49 | J200: $91.13 | K200: $54,400.13
... 175 more rows
